Cogmind - Beta 15 @@@ ROGUE MODE // 2025.06.07 @ 09:31:19 Player: 3.14 Result: Self-destructed Performance ------------- Evolutions (0) 0 Regions Visited (4) 800 Robots Destroyed (36) 180 Value Destroyed (769) 769 Prototype IDs (11) 220 Alien Tech Used (0) 0 Bonus (300) 300 TOTAL SCORE: 2269 Bonus ------- Registered with UFD 300 Cogmind --------- Core Integrity 31/250 Matter 3/300 Energy 240/240 System Corruption 0% Temperature Cool (0) Movement Rolling (100) Ox1 Location -8/Scraptown Parts ------- > --- POWER (1) -------- Nuclear Core > --- PROPULSION (2) --- Wheel Armored Wheel > --- UTILITY (2) ------ Scrapoid Pod > --- WEAPON (2) ------- Light EM Pulse Cannon Light EM Pulse Cannon > --- INVENTORY (5) ---- Ion Engine Light Treads Light EM Pulse Cannon Peak State ------------ > --- POWER ------------ Nuclear Core > --- PROPULSION ------- Wheel Armored Wheel > --- UTILITY ---------- Scrapoid Pod > --- WEAPON ----------- Light EM Pulse Cannon Light EM Pulse Cannon > --- INVENTORY -------- Ion Engine Light Treads Light EM Pulse Cannon [Rating: 22] Favorites ----------- Power Nuclear Core Engine Subdweller Power Source Power Core Nuclear Core Propulsion Light Treads Treads Light Treads Leg Aluminum Leg Wheel Wheel Utility Humpback Device Seismic Detector Storage Humpback Processor Transport Network Coupler Protection Light Armor Plating Weapon Light EM Pulse Cannon Energy Gun Subdweller Laser Energy Cannon Light EM Pulse Cannon Ballistic Gun Assault Rifle Ballistic Cannon Light Cannon Launcher Subdweller Shrapnel Launcher Build | -11 -10 -10 -8 -8 ------- Run | Yrd Mat Sub Rec Scr Slots Evolved . | . . . . . Power . | . . . . . Propulsion . | . . . . . Utility . | . . . . . Weapon . | . . . . . Parts Attached 28 | 3 14 6 1 4 Power 4 | . 3 . 1 . Engine 2 | . 2 . . . Core 2 | . 1 . 1 . Reactor . | . . . . . Propulsion 6 | 2 . 1 . 3 Treads 3 | 2 . 1 . . Leg . | . . . . . Wheel 3 | . . . . 3 Hover . | . . . . . Flight . | . . . . . Utility 9 | 1 6 1 . 1 Device 3 | 1 1 . . 1 Storage 3 | . 2 1 . . Processor 2 | . 2 . . . Hackware . | . . . . . Protection 1 | . 1 . . . Artifact . | . . . . . Weapon 9 | . 5 4 . . Energy Gun 1 | . . 1 . . Energy Cannon 5 | . 3 2 . . Ballistic Gun 1 | . 1 . . . Ballistic Cannon 1 | . 1 . . . Launcher 1 | . . 1 . . Special Weapon . | . . . . . Impact Weapon . | . . . . . Slashing Weapon . | . . . . . Piercing Weapon . | . . . . . Special Melee Weapon . | . . . . . Unidentified Prototypes . | . . . . . Parts Lost 2 | . . 2 . . Power . | . . . . . Propulsion 1 | . . 1 . . Utility . | . . . . . Weapon 1 | . . 1 . . Highest Loss Streak 2 | . . 2 . . To Critical Strikes . | . . . . . Average Backups 21 | 6 10 17 19 27 Power 1 | 1 1 1 1 1 Propulsion 1 | 4 1 . . 2 Utility 7 | . 3 5 7 9 Weapon 10 | 1 4 10 10 11 Tool/Special . | . . . . . Unused Backups 47 | . 16 . . 31 Power 2 | . 2 . . . Propulsion 4 | . 2 . . 2 Utility 19 | . 5 . . 14 Weapon 20 | . 7 . . 13 Tool/Special 2 | . . . . 2 Average Slot Usage (%) 87 | . 99 86 85 85 Engine 4 | . 3 14 8 . Core 9 | . 10 . 5 14 Treads 19 | . 27 27 28 9 Wheel 8 | . . . . 18 Device 1 | . 6 1 . 1 Storage 13 | . 14 14 14 12 Protection 1 | . 6 . . . Energy Gun 2 | . . 11 . . Energy Cannon 21 | . 4 16 28 28 Ballistic Gun 2 | . 16 . . . Ballistic Cannon 1 | . 6 . . . Peak Build Rating 22 | 7 12 12 14 22 Average Rating 13 | 6 9 11 12 16 On Entrance 10 | 6 7 11 12 14 Naked Turns . | . . . . . Heaviest Build 217 | 14 37 217 215 215 Greatest Support 40 | 40 40 40 40 40 Greatest Overweight (x) 13 | . . 5 5 13 Average Overweight (x) 4 | . . 3 5 7 Largest Inventory Capacity 35 | 8 15 35 35 35 Average Capacity 29 | 8 11 32 35 32 Most Carried 35 | 7 15 19 22 35 Average Carried 21 | 6 10 17 19 27 Final Capacity 35 | 8 15 35 35 5 Final Carried 22 | 7 15 17 22 3 Class Distribution -------------------- 77% | Hauler-Mutant 22% | Mutant Dominant Class ---------------- Mutant | -10/Materials Hauler-Mutant | -10/Subcaves Hauler-Mutant | -8/Recycling Hauler-Mutant | -8/Scraptown Resources | -11 -10 -10 -8 -8 ----------- Run | Yrd Mat Sub Rec Scr Matter Collected 1787 | 242 667 36 185 657 Remotely . | . . . . . Salvage Created 1224 | 91 612 167 354 . Parts 68 | 5 37 13 13 . Haulers Intercepted 2 | . 2 . . . Recyclers Shooed 5 | . 2 . 3 . Parts Field Recycled . | . . . . . Retrieved Matter . | . . . . . Parts Self-Destructed 4 | . . 4 . . Prevented . | . . . . . Kills | -11 -10 -10 -8 -8 ------- Run | Yrd Mat Sub Rec Scr Combat Hostiles Destroyed 22 | . 14 7 1 . Guns 7 | . 7 . . . Cannons 11 | . 7 3 1 . AOE 4 | . . 4 . . Classes Destroyed 11 | 2 6 2 1 . Worker 1 | . 1 . . . Builder 1 | . 1 . . . Tunneler 1 | 1 . . . . Hauler 2 | . 2 . . . Recycler 6 | 1 1 . 4 . Turret 2 | . . 2 . . Watcher 1 | . 1 . . . Swarmer 8 | . 5 3 . . Grunt 9 | . 9 . . . Sentry 1 | . . . 1 . Subdweller 4 | . . 4 . . Best Kill Streak 6 | 2 4 6 2 . Combat Bots Only 4 | . 3 4 1 . Max Kills in Single Turn 2 | 1 2 1 1 . Gunslinging . | . . . . . Exploded 1 | . . 1 . . Melee . | . . . . . Uniques/NPCs Destroyed . | . . . . . Combat | -11 -10 -10 -8 -8 -------- Run | Yrd Mat Sub Rec Scr Hostile Shots Fired 120 | . 76 44 . . Missed 37 | . 16 21 . . Hits 83 | . 60 23 . . Projectile 83 | . 60 23 . . AOE 4 | . . 4 . . Damage Taken 1169 | . 687 482 . . Core 219 | . 119 100 . . Absorbed by Shields . | . . . . . Regen/Repaired (Parts) 223 | . 223 . . . Core Remaining (%) 100 | 100 . . . . Volleys Fired 95 | 4 67 15 9 . Largest 2 | 2 2 2 2 . Hottest 140 | 40 86 140 112 . Shots Fired 182 | 8 134 22 18 . Gun 107 | 8 92 7 . . Cannon 67 | . 42 7 18 . Launcher 8 | . . 8 . . Special . | . . . . . Kinetic 133 | 8 117 8 . . Thermal 22 | . 8 14 . . Explosive . | . . . . . Electromagnetic 27 | . 9 . 18 . Robot Hit Streak 10 | 3 10 4 6 . Robot Miss Streak 6 | 1 6 2 1 . Penetration Max . | . . . . . Secondary Targets . | . . . . . Shots Hit Robots 117 | 5 87 12 13 . Core Hits 55 | 3 35 12 5 . Critical Kills 1 | . 1 . . . Critical Parts Destroyed 1 | . 1 . . . Critical Strikes 3 | . 3 . . . Destroy 2 | . 2 . . . Blast 1 | . 1 . . . Melee Attacks . | . . . . . Impact . | . . . . . Slashing . | . . . . . Piercing . | . . . . . Sneak Attacks . | . . . . . Combat Hostiles . | . . . . . Follow-up Attacks . | . . . . . Damage Inflicted 2375 | 61 1167 850 297 . Guns 796 | 61 674 61 . . Cannons 915 | . 456 162 297 . Explosions 627 | . . 627 . . Melee . | . . . . . Ramming 37 | . 37 . . . Kinetic 1649 | 61 961 627 . . Thermal 276 | . 53 223 . . Explosive . | . . . . . Electromagnetic 413 | . 116 . 297 . Impact . | . . . . . Slashing . | . . . . . Piercing . | . . . . . Highest Corruption . | . . . . . Average Corruption . | . . . . . Corruption Purged . | . . . . . Corruption Blocked . | . . . . . Overload Shots . | . . . . . Overflow Damage 9 | . 5 4 . . Projectiles 5 | . 5 . . . Explosions 4 | . . 4 . . Melee . | . . . . . Knockbacks 4 | . 4 . . . Impact 2 | . 2 . . . Kinetic 2 | . 2 . . . Secondary . | . . . . . Self-Inflicted Damage 37 | . . 37 . . Shots 2 | . . 2 . . Rammed 6 | . 5 . 1 . Targets Rammed 7 | . 6 . 1 . Kicked . | . . . . . Crushed 1 | . 1 . . . Highest Temperature 183 | . 183 45 114 . Average Temperature 47 | . 50 24 46 . Received Heat Transfer 405 | . 321 84 . . Siege Activations . | . . . . . Martial Activations . | . . . . . Shielding Activations . | . . . . . Robots Disrupted . | . . . . . Combat Hostiles . | . . . . . Robots Corrupted . | . . . . . Combat Hostiles . | . . . . . Parts Fried . | . . . . . Impact Corruptions . | . . . . . Robots Melted . | . . . . . Combat Hostiles . | . . . . . Parts Melted 1 | . 1 . . . Heat Transferred 408 | . 111 297 . . Parts Sabotaged . | . . . . . Parts Stolen . | . . . . . Parts Stripped . | . . . . . Power Chain Reactions . | . . . . . Alert | -11 -10 -10 -8 -8 ------- Run | Yrd Mat Sub Rec Scr Maximum Alert Level . | . . . . . Low Security (%) 100 | 100 100 . 100 . Level 1 . | . . . . . Level 2 . | . . . . . Level 3 . | . . . . . Level 4 . | . . . . . Level 5 . | . . . . . High Security . | . . . . . Max Security . | . . . . . Peak Influence 145 | 5 145 . 36 . Initial 36 | . . . 36 . Average 28 | 2 56 . 4 . Influence Increases 782 | 10 497 145 130 . Destroy 0b10 Robot/C 400 | . 280 100 20 . Destroy 0b10 Robot/NC 60 | 10 30 . 20 . Destroy Leader 86 | . 86 . . . Successful Hack 11 | . 11 . . . Select Force Hacks 150 | . 60 . 90 . Disable Machine 15 | . 15 . . . Lose Combat Pursuer 60 | . 15 45 . . Influence Decreases 782 | 10 394 173 205 . Entered New Map 90 | . . 51 39 . Time Decay 672 | 10 394 102 166 . Lost Part 20 | . . 20 . . Squads Dispatched 4 | . 4 . . . Investigation 2 | . 2 . . . Extermination . | . . . . . Reinforcement 2 | . 2 . . . Assault . | . . . . . Garrison . | . . . . . Intercept . | . . . . . Searches Triggered . | . . . . . Construction Impeded . | . . . . . Haulers Reinforced . | . . . . . Active Scanning Responses . | . . . . . Cargo Convoy Interrupts . | . . . . . Stealth | -11 -10 -10 -8 -8 --------- Run | Yrd Mat Sub Rec Scr Distress Signals 2 | . 2 . . . Communications Jammed . | . . . . . Distress Signals . | . . . . . Times Spotted 39 | . 30 9 . . Peak Tracking Total 6 | . 4 6 . . Tactical Retreats 2 | . 1 1 . . Traps | -11 -10 -10 -8 -8 ------- Run | Yrd Mat Sub Rec Scr Traps Triggered . | . . . . . Indirectly . | . . . . . Trap Hack Attempts . | . . . . . Triggered . | . . . . . Disarmed . | . . . . . Reprogrammed . | . . . . . Reused . | . . . . . Traps Extracted . | . . . . . Installed . | . . . . . Triggered . | . . . . . Machines | -11 -10 -10 -8 -8 ---------- Run | Yrd Mat Sub Rec Scr Machines Disabled 5 | . 1 4 . . Max in Single Turn 3 | . 1 3 . . Machines Repaired . | . . . . . Machines Dismantled . | . . . . . Machines Sabotaged . | . . . . . Overloaded Fab Kills . | . . . . . Hacking | -11 -10 -10 -8 -8 --------- Run | Yrd Mat Sub Rec Scr Machines Accessed 13 | . 9 . 3 1 Terminals 6 | . 6 . . . Fabricators . | . . . . . Repair Stations 1 | . 1 . . . Recycling Units 5 | . 2 . 3 . Scanalyzers . | . . . . . Garrison Access . | . . . . . Total Hacks 29 | . 25 . 3 1 Successful 21 | . 17 . 3 1 Failed 8 | . 8 . . . Catastrophic . | . . . . . Database Lockouts . | . . . . . Manual 13 | . 10 . 3 . Terminals 14 | . 14 . . . Fabricators . | . . . . . Repair Stations 9 | . 9 . . . Recycling Units 5 | . 2 . 3 . Scanalyzers . | . . . . . Garrison Access . | . . . . . Terminal Hacks 4 | . 3 . . 1 Prototype ID Bank 2 | . 2 . . . Recall Investigation 1 | . 1 . . . Proto ID Catalog 1 | . . . . 1 Fabricator Hacks . | . . . . . Repair Station Hacks 7 | . 7 . . . Scan Component 4 | . 4 . . . Repair 3 | . 3 . . . Recycling Unit Hacks . | . . . . . Scanalyzer . | . . . . . Garrison Access Hacks . | . . . . . Unauthorized Hacks 10 | . 7 . 3 . Terminals 5 | . 5 . . . Skim 5 | . 5 . . . Fabricators . | . . . . . Repair Stations . | . . . . . Recycling Units 5 | . 2 . 3 . Tunnel 5 | . 2 . 3 . Scanalyzers . | . . . . . Garrison Access . | . . . . . Data Cores Recovered . | . . . . . Used . | . . . . . Hacking Detections 7 | . 7 . . . Full Trace Events . | . . . . . Feedback Events . | . . . . . Feedback Blocked . | . . . . . Robot Schematics Acquired . | . . . . . Robots Built . | . . . . . Authchips . | . . . . . Time . | . . . . . Total Robot Build Rating . | . . . . . Part Schematics Acquired . | . . . . . Parts Built . | . . . . . Authchips . | . . . . . Time . | . . . . . Total Part Build Rating . | . . . . . Parts Repaired 3 | . 3 . . . Time 88 | . 88 . . . Parts Recycled . | . . . . . Recycled Matter . | . . . . . Retrieved Matter . | . . . . . Retrieved Components . | . . . . . Parts Scanalyzed . | . . . . . Part Schematics Acquired . | . . . . . Parts Damaged . | . . . . . Bothacking | -11 -10 -10 -8 -8 ------------ Run | Yrd Mat Sub Rec Scr Used RIF Installer . | . . . . . Robots Hacked . | . . . . . Non-combat . | . . . . . Combat . | . . . . . Robot Hacks Applied . | . . . . . Relay Couplers Released . | . . . . . Fabnet Peak Effective % . | . . . . . Robots Rewired . | . . . . . Allies Hacked . | . . . . . Hacks Repelled . | . . . . . Allies | -11 -10 -10 -8 -8 -------- Run | Yrd Mat Sub Rec Scr Total Allies . | . . . . . Largest Group . | . . . . . Highest-Rated Group . | . . . . . Highest-Rated Ally . | . . . . . Total Orders . | . . . . . Ally Attacks . | . . . . . Total Damage . | . . . . . Kills . | . . . . . Allies Corrupted . | . . . . . Allies Melted . | . . . . . Intel | -11 -10 -10 -8 -8 ------- Run | Yrd Mat Sub Rec Scr Active Infowar (turns) 708 | 7 701 . . . Seismic 683 | 7 676 . . . T.N.C. 25 | . 25 . . . Robot Analysis Total . | . . . . . Derelict Logs Recovered 4 | . . 1 . 3 Drone Launches . | . . . . . Drone Recoveries . | . . . . . Exploration | -11 -10 -10 -8 -8 ------------- Run | Yrd Mat Sub Rec Scr Turns Passed 9730 | 44 1601 1865 1884 4336 Spaces Moved 3165 | 17 758 431 330 1629 Core . | . . . . . Treads 1774 | 17 758 431 330 238 Legs . | . . . . . Wheels 1391 | . . . . 1391 Hover . | . . . . . Flight . | . . . . . Fastest Speed 100 | 160 160 160 560 100 Average Speed 286 | 160 160 419 560 255 Slowest Speed 560 | 160 160 560 560 560 Overloaded Moves . | . . . . . Propulsion Burnouts . | . . . . . Robots Hopped . | . . . . . Potential Cave-ins . | . . . . . Cave-ins Triggered . | . . . . . Exploration Rate (%) 53 | 3 90 23 68 85 Regions Visited 4 Branch Regions 3 Pre-discovered Areas 8 | . 2 1 3 2 Known Exits Taken 2 | . 1 1 . . Unknown Exits Taken 2 | 1 . . 1 . Scrap Searched 8 | . . 2 . 6 Spaces Dug 18 | . . 18 . . Terrain Destroyed 72 | . . 72 . . Melee . | . . . . . Projectile 1 | . . 1 . . AOE 71 | . . 71 . . Terrain Rammed . | . . . . . Walls Destroyed . | . . . . . Machines Disabled . | . . . . . Actions | -11 -10 -10 -8 -8 --------- Run | Yrd Mat Sub Rec Scr Total 3671 | 25 1025 468 347 1806 Wait 269 | 1 125 . 2 141 Move 3161 | 16 757 430 329 1629 Hop . | . . . . . Pick Up 67 | 1 27 14 5 20 Fast Attach 11 | 1 7 2 . 1 Attach 6 | . 3 2 . 1 Detach 1 | . . . . 1 Swap 14 | 2 7 2 1 2 Drop 40 | . 26 3 . 11 Fire 95 | 4 67 15 9 . Melee . | . . . . . Ram . | . . . . . Kick . | . . . . . Crush 7 | . 6 . 1 . Escape Stasis . | . . . . . Rewire . | . . . . . Trap . | . . . . . Miscellaneous . | . . . . . Route ------- -11/Scrapyard -10/Materials (discovered 6 exits: *Mat x3 / *Min x2 / *Sub) -10/Subcaves (discovered 2 exits: Mat / *Rec) -8/Recycling (discovered 2 exits: [*Fac] / *Scr) -8/Scraptown (discovered 1 exit: [*Fac]) History --------- Turn | Location | Event 4 | -11/Scrapyard | Discovered new exit (range 3) 45 | -11/Scrapyard | Entered Materials 315 | -10/Materials | Build established: Mutant 518 | -10/Materials | Repaired Lgt. Treads 546 | -10/Materials | Repaired Assault Rifle 583 | -10/Materials | Repaired Broken Lgt. Treads 662 | -10/Materials | Discovered new exit (range 13) 935 | -10/Materials | Discovered new exit (range 4) 967 | -10/Materials | Discovered new exit (range 3) 1175 | -10/Materials | Discovered new exit (range 15) 1210 | -10/Materials | Learned location of 2 exits from Subcaves 1286 | -10/Materials | Identified exit to Mines 1286 | -10/Materials | Identified exit to Materials 1286 | -10/Materials | Identified exit to Subcaves 1352 | -10/Materials | Learned location of 2 exits from Materials 1406 | -10/Materials | Learned 4 Recycling zone layouts 1445 | -10/Materials | Derelicts attacked the area 1567 | -10/Materials | Learned Storage security intel 1646 | -10/Materials | Entered Subcaves 1647 | -10/Subcaves | Approached by a straggling Scientist 1647 | -10/Subcaves | Identified exit to Materials 1647 | -10/Subcaves | Identified exit to Recycling 1665 | -10/Subcaves | Shifting Twisted Machinery released Piercing Trap 1680 | -10/Subcaves | Shifting Twisted Machinery released Sub. Laser 1740 | -10/Subcaves | Learned location of Storage (-8) 1770 | -10/Subcaves | Disturbed a concealed Subdweller 2203 | -10/Subcaves | Build established: Hauler-Mutant 3174 | -10/Subcaves | Core integrity fell below 50% 3209 | -10/Subcaves | Core integrity fell below 20% 3511 | -10/Subcaves | Entered Recycling 4852 | -8/Recycling | Discovered new exit (range 15) 5255 | -8/Recycling | Scanned before Scraplab entrance 5339 | -8/Recycling | Entered Scraplab 5384 | -8/Recycling | Discovered new exit (range 3) 5395 | -8/Recycling | Entered Scraptown 5766 | -8/Scraptown | Heard Great Nut preacher, LISTEN AND RECITE! 6018 | -8/Scraptown | Scanned Subdweller tech in exchange for log data 6029 | -8/Scraptown | Learned location of Warlord (-5) 6035 | -8/Scraptown | Learned Research stockpile data 6040 | -8/Scraptown | Learned 12 Factory zone layouts 6110 | -8/Scraptown | Discovered new exit (range 11) 7265 | -8/Scraptown | Visited Comm Corps 7427 | -8/Scraptown | Visited Observation Area 7446 | -8/Scraptown | Visited Fellowship of the Rings 7482 | -8/Scraptown | Visited Awakened 7498 | -8/Scraptown | Visited Cyclists 7528 | -8/Scraptown | Visited Assassins FH 7616 | -8/Scraptown | Visited UFD Registry 7616 | -8/Scraptown | Registered with UFD as "Matrixskull" 7658 | -8/Scraptown | Entered Cyclist Reading Room 7788 | -8/Scraptown | Visited Curators Association 7868 | -8/Scraptown | Visited Scrapoid Pod Storage 7891 | -8/Scraptown | Found Scrapoid Pod 7934 | -8/Scraptown | Visited Scrapoid Research Area 7966 | -8/Scraptown | Visited Junk Repository 8053 | -8/Scraptown | Visited Scrap Suit Storage 8082 | -8/Scraptown | Visited Research Penetration Think Tank 8330 | -8/Scraptown | Visited Chapter 10 8389 | -8/Scraptown | Visited Science Guys 8469 | -8/Scraptown | Visited LU-1G1's Boring Crew 9717 | -8/Scraptown | Build established: Mutant 9731 | -8/Scraptown | Self-destructed Last Messages --------------- 09075_ Found Imp. Aluminum Leg. 09075_ Found Hvy. EM Pulse Gun. 09075_ Found 63 Matter. 09076_ Acquired 63 matter. 09080_ Dropped Imp. Targeting Computer. 09080_ Acquired Adv. Targeting Computer. 09192_ Acquired 21 matter. 09241_ Acquired 40 matter. 09410_ Dropped Humpback. 09425_ Extracted 75 matter. 09426_ Extracted 5 matter. 09441_ Extracted 75 matter. 09442_ Extracted 5 matter. 09466_ Extracted 25 matter. 09467_ Extracted 5 matter. 09480_ Extracted 4 matter. 09506_ Extracted 25 matter. 09583_ WU-C6F(p): "Psst-beep! Hey Matrixskull, over here!" 09587_ Acquired 43 matter. 09677_ Acquired 36 matter. Map ----- +----------------------------------------------------+ | " """"""" #" "#????????# | | # ####### #"" """########### | | ????????# ###### ########### | | ???###### #???"""""????????# | | " """"""" #"" """##"" """### #??# ??????# | | " " "" #" "##"" "#?# #??# " ????# | | " " "" #"" "##""! "#?# #??# " " "? #???# | | " "" #"" "##"" "#?# #??# " "??????# | | "" #"" " "##" [ "#?# #??# " "? ??????# | | #"""" "##"= "#?# #??# "?" ?????# | | " " #""""""##""""""#?# #????""""??""????# | | "" "" ################?# #????????????????# | | " "" #######??#####???# #????????????????# | | "" "" """""""#?#"""#???# #????????????????? | | """"" """ " "#?#" "#???# #????????????????? | | ##### ### " """ "#?# #???# #????????????????? | | ??? ??# " """ "#?# ##### #????????????????? | | # ####### " """ "??# ##???????????##### | | " """"""" " """ "??# #???????????# | | " " """ "??# ##???###???### ### | | """"" " " """ "??##### ### ##???"""""?#""" "#? | | ??"""" " " """ "#?????# #?###????"" ""?#""" "#? | | ??""""" """ "####### ######???"" "?#""" "#? | | ??""""" " " """ "##""""" """""#??#" ""##"" "#? | | """"" " " "##""" " " "#??#"" ""##"" "#? | | " """""""##" =!@ "#??#"" ""##" "#? | | """"""""" #########""""" """""#??#"" ""##" "#? | | ??####### ##??????###### ######??#" ""##"" "#? | | ???????# ############# #########"" ""##"" ""## | | ???????# | | ???????# | | ???????# ###"""" """"######"""" """""######""" | | ???????######?#""" !"""#????#" "#????#"" | | ??????????????#""" | ""#????#" "#????#" | | ??????????????#"""" / "#????#" "#????#" | | ??????????????#""""" "#????#""""" ! "#????#" | | ??????????????#"""""""""#????#""""""""""#????#"""" | | ??????????????###########????############????##### | | | | | | | | | | | | | | | | | | | | | | | | | +----------------------------------------------------+ Best States ------------- Heat Dissipation 35 Energy Generation 14 Energy Capacity 250 Matter Stores 300 Matter Capacity 300 Sight Range 16 Terrain Scan Density 10 Armor Coverage 150 Evasion (%) 40 Targeting Accuracy 5 Recoil Reduction 2 Item Schematics ----------------- None Robot Schematics ------------------ None Fabricated ------------ Nothing Repaired ---------- Lgt. Treads | 21% | -10/Materials Assault Rifle | 42% | -10/Materials Lgt. Treads | 60% | -10/Materials | Broken Alien Tech Used ----------------- None Achievements -------------- None Challenges ------------ None Game ------ Seed LinearTerrorSuperbattery Manual? 0 Play Time 00:19:31 Cumulative 929.7 hours Start 2025.06.07 @ 09:11:09 End 2025.06.07 @ 09:31:19 Sessions 3 Manual Loads 0 Difficulty Rogue Special Mode None Game No. 1522 Rogue 1522 Adventurer 0 Explorer 0 Win Type - Total 91 Types 54/1/16/14/4/0/0/1/0/1 Lore% 91 Gallery% 83 Achievement% 85 Wizard Run 0 Options --------- Layout 0 ASCII 1 Keyboard 0 Movement Numpad Keybinds 1 Fullscreen 2 Font 18/SmallcapsGlow Map View 76x50 Zoom Use 0% Tactical HUD 1 Map Filters NONE Filters NONE Steam 1 RUN: 9fe17f38-e6f5-4f31-add6-5eb45e14f0c0